bitfinex/quotes_ETHUSD_20220310
["timestamp","ask_amount","ask_price","bid_price","bid_amount"]
[1646955875981,1.9159,2610.7,2610.5,0.551]
[1646955877177,1.9159,2610.7,2610.5,0.55557725]
[1646955878026,1.9159,2610.7,2610.5,0.551]
[1646955878417,1.9159,2610.7,2610.5,0.5554262]
[1646955879219,1.9159,2610.7,2610.5,0.551]
[1646955879618,1.9159,2610.7,2610.5,0.5554262]
[1646955880423,1.9159,2610.7,2610.5,0.551]
[1646955880828,1.9159,2610.7,2610.5,0.5554262]
[1646955881772,1.9159,2610.7,2610.5,0.551]
[1646955881972,1.9159,2610.7,2610.5,0.55525435]
[1646955883074,1.9159,2610.7,2610.5,0.551]
[1646955883275,1.9159,2610.7,2610.5,0.55525435]
[1646955884077,1.9159,2610.7,2610.5,0.551]
[1646955884283,1.9159,2610.7,2610.5,0.55525435]
[1646955885279,1.9159,2610.7,2610.5,0.551]
[1646955885531,1.9159,2610.7,2610.5,0.55526595]
[1646955886530,1.9159,2610.7,2610.5,0.551]
[1646955886728,1.9159,2610.7,2610.5,0.55526595]
[1646955887829,1.9159,2610.7,2610.5,0.551]
[1646955888028,1.9159,2610.7,2610.5,0.55526595]
[1646955888230,3.5,2610.6,2610.5,0.00426595]
[1646955888429,3.54330127,2610.6,2610.5,0.00426595]
[1646955888628,0.04330127,2610.6,2610.5,0.00426595]
[1646955888834,3.54330127,2610.6,2610.5,0.00426595]
[1646955889029,3.54330127,2610.6,2610.1,0.551]
[1646955889030,1.9647792,2610.5,2610.1,0.551]
[1646955889272,3.93894595,2610.5,2610.4,0.00426521]
[1646955889473,3.89231372,2610.5,2610.4,0.00426521]
[1646955889676,7.39231372,2610.5,2610.4,0.00426521]
[1646955890074,7.39231372,2610.5,2609.7,0.00132538]
[1646955890274,1.91692,2610.3,2609.5,0.00132538]
[1646955890479,0.95726959,2610.1,2609.9,0.01706368]
[1646955890676,3.5,2610.0,2609.9,0.01706368]
[1646955891481,0.95852,2609.9,2609.3,0.551]
[1646955891677,1.9170334,2609.8,2609.4,0.01706519]
[1646955892578,0.95851,2609.7,2609.3,0.551]
[1646955892776,1.91686,2609.6,2609.5,0.00427292]
[1646955893721,0.95845,2609.5,2609.3,0.551]
[1646955893921,0.95845,2609.5,2609.4,0.00427295]
[1646955894926,0.95845,2609.5,2609.1,2.7459]
[1646955895126,1.917,2609.5,2609.1,2.7459]
[1646955895326,1.917,2609.5,2609.2,0.04092649]
[1646955896433,1.917,2609.5,2609.2,0.04519222]
[1646955896878,1.917,2609.5,2609.3,0.04035806]
[1646955897280,1.917,2609.5,2609.4,0.551]
[1646955897281,0.95845,2609.5,2609.4,0.551]
[1646955898381,0.95839,2609.6,2609.4,4.051]
[1646955898681,3.83334,2610.0,2609.5,0.08078785]
[1646955898879,3.83334,2610.0,2609.6,0.551]
[1646955899682,0.95826,2609.9,2609.6,0.551]
[1646955900080,0.95826,2609.9,2609.7,0.00457047]
[1646955900280,0.95826,2609.9,2609.8,0.551]
[1646955900534,3.83334,2610.0,2609.8,0.551]
[1646955901228,3.83334,2610.0,2609.8,0.55557038]
[1646955902230,3.83334,2610.0,2609.8,0.551]
[1646955904483,4.7918245,2610.0,2609.8,0.551]
[1646955904878,4.7918245,2610.0,2609.8,0.55556641]
[1646955905077,3.83334,2610.0,2609.8,0.55556641]
[1646955905683,3.83334,2610.0,2609.8,0.551]
[1646955906084,3.83334,2610.0,2609.8,0.55556641]
[1646955907089,3.83334,2610.0,2609.8,0.551]
[1646955907284,3.83334,2610.0,2609.8,0.50556641]
[1646955908121,3.83334,2610.0,2609.8,0.501]
[1646955908420,3.83334,2610.0,2609.8,0.50556641]
[1646955909422,3.83334,2610.0,2609.9,1.33255912]
[1646955914575,7.33334,2610.0,2609.8,0.00411179]
[1646955914780,5.08093683,2609.9,2609.8,0.00411179]
[1646955914977,0.00547519,2609.7,2608.7,1.1314]
[1646955915175,0.00547519,2609.7,2608.3,1.49691861]
[1646955915176,1.96796588,2609.5,2608.3,1.49691861]
[1646955915378,0.95895,2609.1,2608.3,1.6824]
[1646955915633,1.12195597,2608.6,2608.3,1.6824]
[1646955915836,1.12195597,2608.6,2608.3,0.551]
[1646955916033,0.04385642,2608.5,2608.2,0.3832]
[1646955916235,2.92111642,2608.5,2607.7,2.07731861]
[1646955916437,2.92111642,2608.5,2607.8,0.551]
[1646955916438,6.42111642,2608.5,2607.8,0.551]
[1646955916632,2.92111642,2608.5,2607.8,0.551]
[1646955917133,3.23461642,2608.5,2608.0,0.00198455]
[1646955917341,0.04594357,2608.3,2608.0,0.00198455]
[1646955917532,1.96407357,2608.3,2608.0,0.00198455]
[1646955918034,0.04541222,2608.2,2607.8,0.551]
[1646955918234,0.04541222,2608.2,2608.0,0.00198451]
[1646955918440,3.38823177,2608.2,2608.0,0.00198451]
[1646955918736,2.87737,2608.2,2608.0,0.00198451]
[1646955919135,0.9592684,2608.0,2607.4,0.57169465]
[1646955919376,0.957733,2607.8,2607.4,0.0193893]
[1646955919574,0.957733,2607.8,2607.6,0.01712538]
[1646955919776,0.957733,2607.8,2607.2,0.5646696]
[1646955920177,1.9170205,2607.8,2607.2,0.5646696]
[1646955920374,2.8763205,2607.8,2607.2,0.5646696]
[1646955920580,1.91849,2607.7,2607.2,0.5646696]
[1646955921979,0.95925,2607.5,2607.2,0.5646696]
[1646955922184,1.91846,2607.5,2607.2,0.5646696]
[1646955923526,0.95921,2607.5,2607.3,4.45904]
[1646955923726,0.95921,2607.5,2607.4,4.051]
[1646955923925,0.66459355,2607.5,2607.4,4.051]
[1646955924125,0.66459355,2607.5,2607.4,5.051]
[1646955925328,2.87701,2607.9,2607.4,5.051]
[1646955925529,2.87701,2607.9,2607.4,6.01001]
[1646955926434,0.95901,2607.7,2607.4,1.551]
[1646955926633,0.95901,2607.7,2607.5,0.00424287]
[1646955926874,0.95901,2607.7,2607.6,0.551]
[1646955929075,2.04721007,2607.7,2607.6,0.551]
[1646955933132,0.05636726,2607.6,2607.5,0.00398251]
[1646955933331,0.05636726,2607.6,2607.2,0.0136696]
[1646955933533,2.87807,2607.5,2607.2,0.0136696]
[1646955933731,2.87807,2607.5,2607.4,0.00398264]
[1646955934787,2.87807,2607.5,2607.2,0.0136696]
[1646955936292,2.87807,2607.5,2607.2,0.01562373]
[1646955936994,3.83761,2607.5,2607.2,0.01562373]
[1646955937192,3.83761,2607.5,2607.2,0.0136696]
[1646955938036,2.82925067,2606.9,2606.7,0.02658707]
[1646955938232,1.91916,2606.9,2606.7,0.02528172]
[1646955939025,1.91916,2606.9,2606.7,0.57628172]
[1646955939826,1.91916,2606.9,2606.7,0.58083998]
[1646955940742,1.91916,2606.9,2606.8,3.5]
[1646955940934,1.91916,2606.9,2606.8,4.051]
[1646955941136,4.0049,2607.7,2606.9,0.07380279]
[1646955941137,2.88265644,2607.7,2606.9,0.07380279]
[1646955941439,0.00455644,2607.7,2607.2,0.08445955]
[1646955941633,0.00455644,2607.7,2607.3,0.551]
[1646955941881,0.00455644,2607.7,2607.4,0.0673752]
[1646955942081,0.96362644,2607.7,2607.5,0.551]
[1646955942381,0.96139549,2607.7,2607.5,0.551]
[1646955942984,1.92047549,2607.7,2607.5,0.551]
[1646955943185,1.91815,2607.7,2607.5,0.551]
[1646955943389,1.91815,2607.7,2607.2,0.0790799]
[1646955943685,1.91853,2607.5,2607.2,0.6300799]
[1646955944788,1.91853,2607.5,2607.2,0.63463374]
[1646955944789,2.87781,2607.4,2607.2,0.63463374]
[1646955945524,2.87781,2607.4,2607.2,0.6300799]
[1646955945937,2.87781,2607.4,2607.2,0.63463379]
[1646955946930,2.87781,2607.4,2607.2,0.6300799]
[1646955947130,2.87781,2607.4,2607.2,0.63463379]
[1646955948132,2.87781,2607.4,2607.2,0.6300799]
[1646955948333,2.87781,2607.4,2607.2,0.63463379]
[1646955949378,2.87781,2607.4,2607.2,0.6300799]
[1646955949580,2.87781,2607.4,2607.2,0.55509905]
[1646955949981,0.81224876,2607.6,2607.2,0.55509905]
[1646955950179,0.05016495,2607.7,2607.2,0.55509905]
[1646955950379,0.0040982,2607.7,2607.2,0.85509905]
[1646955950583,3.5,2608.2,2607.2,0.85509905]
[1646955950584,0.04585072,2608.1,2607.2,0.851]
[1646955950784,0.00219338,2607.7,2607.2,2.0163]
[1646955951685,0.11894907,2608.4,2607.2,2.0163]
[1646955952085,0.00219342,2607.7,2607.2,2.0163]
[1646955952286,0.00219342,2607.7,2607.2,3.04605157]
[1646955952488,0.00219342,2607.7,2607.2,3.29605157]
[1646955952691,0.00219342,2607.7,2607.2,4.29605157]
[1646955952888,0.9685366,2608.3,2607.2,4.25514157]
[1646955953138,0.00448302,2607.7,2607.3,0.0044837]
[1646955953332,0.00448302,2607.7,2607.4,0.551]
[1646955953530,0.00448302,2607.7,2607.4,2.76907]
[1646955953737,0.00448302,2607.7,2607.4,3.76907]
[1646955953932,0.00448302,2607.7,2607.4,3.72809]
[1646955954135,2.6894,2608.7,2607.5,1.98899105]
[1646955954332,0.04425425,2608.6,2607.8,0.9589862]
[1646955954532,0.19393037,2608.8,2607.9,0.851]
[1646955954734,0.19393037,2608.8,2608.0,0.551]
[1646955955336,1.0322773,2608.6,2608.0,1.5099409]
[1646955955534,0.05969117,2608.5,2608.0,1.5099409]
[1646955956537,0.05520874,2608.5,2608.0,1.5099409]
[1646955956779,0.00424292,2608.4,2608.0,1.5099409]
[1646955957479,0.00424292,2608.4,2608.0,2.4688609]
[1646955957680,0.04923882,2609.0,2608.0,2.7688609]
[1646955957882,0.04432143,2608.8,2608.0,2.7688609]
[1646955958081,0.04432143,2608.8,2608.0,3.7688609]
[1646955958082,0.00409167,2608.3,2608.0,3.7688609]
[1646955958482,0.00409167,2608.3,2608.0,2.80992]
[1646955958682,0.00409167,2608.3,2608.0,1.851]
[1646955958886,0.05594301,2608.5,2608.0,1.851]
[1646955959082,0.00409171,2608.3,2608.0,1.851]
[1646955959282,0.00409171,2608.3,2608.0,1.004462]
[1646955959481,0.00409171,2608.3,2608.0,0.851]
[1646955960088,0.00283939,2608.4,2608.0,0.851]
[1646955960282,0.00410996,2608.3,2608.0,0.851]
[1646955960933,0.00410996,2608.3,2608.0,1.80987]
[1646955961134,0.00410996,2608.3,2608.0,2.7687157]
[1646955961332,0.00283939,2608.4,2608.1,0.3]
[1646955961537,0.00397955,2608.3,2608.2,0.551]
[1646955962634,0.00283939,2608.4,2608.2,0.551]
[1646955962935,0.00681886,2608.4,2608.2,0.551]
[1646955963733,0.00283939,2608.4,2608.2,0.551]
[1646955965179,0.04589915,2608.9,2608.2,0.551]
[1646955965379,0.04589915,2608.9,2608.2,1.50983]
[1646955966185,0.95743003,2609.0,2608.2,1.50983]
[1646955966385,0.95743003,2609.0,2608.2,2.45574861]
[1646955966585,0.95743003,2609.0,2608.2,1.50983]
[1646955966791,0.00314282,2609.0,2608.3,1.9175666]
[1646955966987,0.00314282,2609.0,2608.4,1.6939]
[1646955967186,0.00314282,2609.0,2608.5,0.551]
[1646955967786,0.00426411,2608.8,2608.5,0.551]
[1646955968229,0.00426411,2608.8,2608.5,1.509691]
[1646955968629,0.00314282,2609.0,2608.5,1.509691]
[1646955968830,0.0043286,2608.8,2608.5,1.509691]
[1646955969030,0.0043286,2608.8,2608.5,2.468371]
[1646955969435,0.0043286,2608.8,2608.6,0.3]
[1646955969730,0.01022068,2608.9,2608.7,0.551]
[1646955969931,0.0043286,2608.8,2608.7,0.551]
[1646955970130,0.0043286,2608.8,2608.7,1.5096525]
[1646955970330,0.0043286,2608.8,2608.7,1.8096525]
[1646955970937,0.01022068,2608.9,2608.7,1.8096525]
[1646955971135,0.01022068,2608.9,2608.8,1.2105]
[1646955971335,0.01022068,2608.9,2608.8,1.7615]
[1646955971336,0.0145492,2608.9,2608.8,1.7615]
[1646955972183,0.01022068,2608.9,2608.8,1.7615]
[1646955975384,0.00425079,2609.0,2608.9,0.95847]
[1646955975630,0.00425079,2609.0,2608.9,1.50947]
[1646955975834,0.01022701,2609.2,2608.9,1.80947]
[1646955976030,0.00425568,2609.1,2608.9,1.80947]
[1646955977035,0.01022701,2609.2,2608.9,1.80947]
[1646955977432,0.00425564,2609.1,2608.9,1.80947]
[1646955978041,0.00425564,2609.1,2608.9,2.7679164]
[1646955978231,0.01022701,2609.2,2608.9,3.7679164]
[1646955978432,0.00425564,2609.1,2608.9,3.7679164]
[1646955979580,0.00425523,2609.1,2608.9,3.7679164]
[1646955980584,0.00547519,2609.7,2608.9,3.7679164]
[1646955980782,0.00547519,2609.7,2609.1,1.9170385]
[1646955980985,0.00547519,2609.7,2609.2,0.551]
[1646955981986,0.0042549,2609.6,2609.2,0.551]
[1646955982190,0.0042549,2609.6,2609.3,0.9585185]
[1646955982385,0.0042549,2609.6,2609.4,0.551]
[1646955983040,0.00547519,2609.7,2609.4,0.551]
[1646955983432,0.0042549,2609.6,2609.4,0.551]
[1646955984133,0.00547519,2609.7,2609.4,0.551]
[1646955984533,0.0042549,2609.6,2609.4,0.551]
[1646955985335,0.01021346,2609.6,2609.4,0.551]
[1646955985537,0.01446836,2609.6,2609.4,0.551]
[1646955986440,0.01306244,2609.6,2609.4,0.551]
[1646955986642,0.00880754,2609.6,2609.4,0.551]
[1646955986878,0.01306242,2609.6,2609.4,0.551]
[1646955987877,0.00880754,2609.6,2609.4,0.551]
[1646955988077,0.01306242,2609.6,2609.4,0.551]
[1646955988680,0.01306242,2609.6,2609.4,7.443]
[1646955989079,0.00880754,2609.6,2609.4,8.443]
[1646955989278,0.01113565,2609.6,2609.4,8.443]
[1646955989677,3.565e-05,2609.6,2609.4,8.443]
[1646955989885,3.565e-05,2609.6,2609.5,7.92707809]
[1646955990080,3.565e-05,2609.6,2609.5,9.31027809]
[1646955990081,0.01213947,2609.6,2609.5,9.31027809]
[1646955990278,0.01213947,2609.6,2609.5,10.23341]
[1646955990943,0.01213947,2609.6,2609.5,12.34437487]
[1646955991345,0.01213947,2609.6,2609.5,11.38616487]
[1646955991644,0.01213947,2609.6,2609.5,9.2752]
[1646955991844,0.01213947,2609.6,2609.5,11.7754981]
[1646955993745,0.05048377,2610.9,2610.0,0.95812]
[1646955993945,0.05048377,2610.9,2610.1,0.551]
[1646955994147,0.05048377,2610.9,2610.2,1.1291]
[1646955994376,0.05048377,2610.9,2610.3,0.551]
[1646955994377,1.58099607,2610.8,2610.3,0.551]
[1646955994581,0.04678842,2610.7,2610.3,0.551]
[1646955994775,0.86688494,2610.6,2610.3,0.551]
[1646955995379,0.87144247,2610.6,2610.3,0.551]
[1646955996281,0.86688494,2610.6,2610.4,0.9581254]
[1646955996483,0.87144252,2610.6,2610.4,1.5091254]
[1646955997486,0.86688494,2610.6,2610.4,1.5091254]
[1646955997682,0.87144247,2610.6,2610.4,1.5091254]
[1646955998525,0.86688494,2610.6,2610.4,1.5091254]
[1646955998929,0.87130575,2610.6,2610.4,1.5091254]
[1646955999128,0.87130575,2610.6,2610.4,0.551]
[1646955999328,0.87130575,2610.6,2610.0,0.551]
[1646955999329,3.54356697,2610.5,2610.0,0.551]
[1646955999529,3.54356697,2610.5,2609.7,4.6584]
[1646955999530,1.32686443,2610.2,2609.7,2.742]
[1646955999728,0.05114413,2610.1,2609.6,1.1639]
[1646955999929,0.90087507,2609.8,2609.6,1.1639]
[1646956000136,0.90087507,2609.8,2609.5,0.551]
[1646956000137,0.04365338,2609.7,2609.5,0.551]
[1646956001334,0.04807491,2609.7,2609.5,0.551]
[1646956002185,0.04365338,2609.7,2609.5,0.551]
[1646956002386,0.04598022,2609.7,2609.5,0.551]
[1646956003487,0.04365338,2609.7,2609.5,0.551]
[1646956003687,0.04598022,2609.7,2609.5,0.551]
[1646956004690,0.04365338,2609.7,2609.5,0.551]
[1646956004891,0.04598022,2609.7,2609.5,0.551]
[1646956005295,0.05707531,2609.7,2609.6,0.00304791]
[1646956005933,0.05474847,2609.7,2609.6,0.00304791]
[1646956006932,0.01109509,2609.7,2609.6,0.00304791]
[1646956010085,0.01109509,2609.7,2609.5,0.00290692]
[1646956010886,0.01550327,2609.7,2609.5,0.00290692]
[1646956011886,0.01109509,2609.7,2609.5,0.00290692]
[1646956012084,0.01550327,2609.7,2609.5,0.00290692]
[1646956012886,0.01550327,2609.7,2609.6,0.551]
[1646956013134,0.01109509,2609.7,2609.6,0.551]
[1646956013332,0.01550327,2609.7,2609.6,0.551]
[1646956014335,0.01109509,2609.7,2609.6,0.551]
[1646956015449,0.01543422,2609.7,2609.6,0.55381691]
[1646956024410,0.01390309,2609.7,2609.6,0.55381691]
[1646956028948,0.0042617,2609.8,2609.7,0.9583742]
[1646956029144,0.0042617,2609.8,2609.7,1.8093742]
[1646956029944,0.01466046,2610.1,2609.7,1.8093742]
[1646956030144,0.00426162,2609.9,2609.7,1.8093742]
[1646956031146,0.01466046,2610.1,2609.7,1.8093742]
[1646956031348,0.00426158,2609.9,2609.7,1.8093742]
[1646956032383,0.01466046,2610.1,2609.7,1.8093742]
[1646956032582,0.00426158,2609.9,2609.7,1.8093742]
[1646956033583,0.01466046,2610.1,2609.7,1.8093742]
[1646956033784,0.00426158,2609.9,2609.7,2.7676142]
[1646956034189,0.00426158,2609.9,2609.8,0.95821]
[1646956034388,0.00426158,2609.9,2609.8,1.50921]
[1646956034590,1.58550038,2609.9,2609.8,1.50921]
[1646956034788,1.5812388,2609.9,2609.8,3.4256393]
[1646956035631,0.00426155,2610.0,2609.8,3.4256393]
[1646956035833,1.58122977,2609.9,2609.8,3.4256393]
[1646956036230,1.58548741,2610.0,2609.8,3.4256393]
[1646956036532,0.00426155,2610.0,2609.8,3.4256393]
[1646956036736,1.58124171,2609.9,2609.8,3.4256393]
[1646956037333,1.58550326,2610.0,2609.8,3.4256393]
[1646956037535,1.58124171,2609.9,2609.8,3.4256393]
[1646956038537,1.58550326,2610.0,2609.8,3.4256393]
[1646956038736,1.58124171,2609.9,2609.8,3.4256393]
[1646956039387,1.58124171,2609.9,2609.8,2.4674293]
[1646956039783,1.58124171,2609.9,2609.8,2.47133606]
[1646956042291,1.58124171,2609.9,2609.8,2.77133606]
[1646956046539,1.58124171,2609.9,2609.8,2.72133606]
[1646956049286,1.63533896,2609.9,2609.8,0.85490676]
[1646956051736,1.63524362,2609.9,2609.8,0.85490676]
[1646956054991,1.58114637,2609.9,2609.8,0.85490676]
[1646956060641,1.58114637,2609.9,2609.8,4.24889456]
[1646956060843,0.01713924,2610.0,2609.9,0.0816327]
[1646956061044,0.01713924,2610.0,2609.9,0.6326327]
[1646956061242,0.01287769,2610.0,2609.9,0.9326327]
[1646956061444,0.01713924,2610.0,2609.9,0.9326327]
[1646956062484,0.01287769,2610.0,2609.9,0.9326327]
[1646956062789,1.59383821,2610.0,2609.9,0.851]
[1646956065395,1.59383821,2610.0,2609.9,0.85469726]
[1646956066439,2.4542948,2610.0,2609.9,0.85469726]
[1646956066940,5.9542948,2610.0,2609.9,0.30369726]
[1646956067338,5.9542948,2610.0,2609.9,0.00369726]
[1646956067542,2.4542948,2610.0,2609.9,0.00369726]
[1646956068438,1.59383821,2610.0,2609.9,0.00369726]
[1646956068639,1.59288225,2610.0,2609.9,0.00369726]
[1646956070083,1.59288225,2610.0,2609.4,4.0797821]
[1646956070084,1.59288225,2610.0,2609.4,4.38347936]
[1646956070283,1.58096052,2609.9,2609.5,0.9583386]
[1646956070692,1.58096052,2609.9,2609.6,0.3]
[1646956070889,0.00426165,2609.8,2609.6,0.3]
[1646956071087,1.58096052,2609.7,2609.6,0.3]
[1646956071489,0.00426165,2609.8,2609.6,1.25828]
[1646956071890,0.01192173,2610.0,2609.6,1.80928]
[1646956072189,0.01192173,2610.0,2609.6,1.89329791]
[1646956072190,0.00426165,2609.8,2609.6,1.89329791]
[1646956072389,0.00426165,2609.8,2609.6,0.93501791]
[1646956073236,0.01192173,2610.0,2609.6,0.93501791]
[1646956073437,0.00426165,2609.8,2609.6,0.93501791]
[1646956074435,0.01192173,2610.0,2609.6,0.93501791]
[1646956074634,0.00426165,2609.8,2609.6,0.93501791]
[1646956075236,1.58119174,2609.7,2609.6,0.93501791]
[1646956076895,1.58119174,2609.7,2609.6,0.851]
[1646956079001,1.58119174,2609.7,2609.6,0.3]
[1646956079201,1.58119174,2609.7,2609.4,4.4214621]
[1646956079400,1.58119174,2609.7,2609.4,3.2167621]
[1646956079602,1.58119174,2609.7,2609.4,2.2167621]
[1646956079807,1.58119174,2609.7,2609.6,0.00331138]
[1646956081254,1.58119174,2609.7,2609.6,0.30331138]
[1646956081857,0.01571849,2609.8,2609.7,0.07035496]
[1646956082158,0.01571849,2609.8,2609.7,0.62135496]
[1646956082857,0.01153599,2609.8,2609.7,0.551]
[1646956083456,0.01153599,2609.8,2609.7,4.051]
[1646956083856,0.01153599,2609.8,2609.7,5.051]
[1646956085488,0.00402974,2609.9,2609.8,1.9163951]
[1646956085689,0.00402974,2609.9,2609.8,5.9673951]
[1646956085888,0.00402974,2609.9,2609.8,6.2673951]
[1646956086088,0.00402974,2609.9,2609.8,7.2673951]
[1646956086488,0.01281777,2610.0,2609.9,0.3]
[1646956086690,0.01685011,2610.0,2609.9,4.351]
[1646956086890,0.00403234,2610.0,2609.9,5.5521]
[1646956087090,0.00403234,2610.0,2609.9,6.5521]
[1646956087790,1.58087588,2610.8,2610.4,0.9579206]
[1646956088043,1.58087588,2610.8,2610.5,4.051]
[1646956088335,1.58087588,2610.8,2610.5,4.351]
[1646956088941,1.58087588,2610.8,2610.5,6.26686]
[1646956089136,1.58087588,2610.8,2610.5,14.11672]
[1646956089137,0.00203087,2610.8,2610.5,14.11672]
[1646956089437,0.00203087,2610.8,2610.6,2.21561]
[1646956089635,0.00203087,2610.8,2610.7,7.443]
[1646956089836,0.00203087,2610.8,2610.7,8.443]
[1646956090035,1.5806106,2611.3,2610.9,0.95773]
[1646956090237,1.5806106,2611.3,2611.0,5.3086247]
[1646956090436,2.52906529,2612.0,2611.1,6.892]
[1646956090640,1.58041339,2611.9,2611.2,10.943]
[1646956090839,0.70520517,2612.1,2611.2,10.943]
[1646956090840,1.58041339,2611.8,2611.3,0.551]
[1646956091040,0.70520517,2612.2,2611.3,0.551]
[1646956091240,1.0321278,2611.5,2611.3,0.54973543]
[1646956092689,1.03431845,2611.5,2611.3,0.54973543]
[1646956093589,1.0321278,2611.5,2611.3,0.54973543]
[1646956093995,1.03655954,2611.5,2611.3,0.54973543]
[1646956095542,1.04801102,2611.5,2611.4,0.00458671]
[1646956095738,1.04801102,2611.5,2611.4,0.55558671]
[1646956096237,1.04357928,2611.5,2611.4,0.55558671]
[1646956097139,0.01145148,2611.5,2611.4,0.55558671]
[1646956102800,0.01145148,2611.5,2610.8,1.9158004]
[1646956102801,0.78918485,2611.3,2610.8,1.9158004]
[1646956103046,0.78918485,2611.3,2611.0,0.551]
[1646956103236,0.04293336,2611.2,2611.0,0.551]
[1646956103935,0.78918485,2611.3,2611.0,0.551]
[1646956104135,0.78918485,2611.3,2611.0,0.851]
[1646956106443,0.78918485,2611.3,2611.0,1.8089349]
[1646956107085,0.79362418,2611.3,2611.0,1.8089349]
[1646956107987,0.78918485,2611.3,2611.0,1.8089349]
[1646956108386,0.79362418,2611.3,2611.0,1.8089349]
[1646956109286,0.78918485,2611.3,2611.0,1.8089349]
[1646956109491,0.79343199,2611.3,2611.0,1.8089349]
[1646956109887,0.79343199,2611.3,2611.1,2.8733287]
[1646956110091,0.79343199,2611.3,2611.2,0.55514238]
[1646956110536,0.78918485,2611.3,2611.2,0.55514238]
[1646956112050,0.78918485,2611.3,2611.2,4.05514238]
[1646956112445,0.78918485,2611.3,2611.2,5.05514238]
[1646956112644,0.78918485,2611.3,2611.2,1.55514238]
[1646956112845,0.78918485,2611.3,2611.2,0.55514238]
[1646956116295,0.78918485,2611.3,2611.2,5.97040238]
[1646956116693,0.78918485,2611.3,2611.2,6.97040238]
[1646956118942,0.78918485,2611.3,2611.2,3.47040238]
[1646956119141,0.78918485,2611.3,2611.2,5.97040238]
[1646956119338,0.78918485,2611.3,2611.2,6.97040238]
[1646956123990,0.78827481,2611.3,2611.2,6.97040238]
[1646956131792,0.78827481,2611.3,2611.2,3.47040238]
[1646956131991,0.78827481,2611.3,2611.2,6.97040238]
[1646956143152,0.78827481,2611.3,2611.2,13.86240238]
[1646956145396,0.78689896,2611.3,2611.2,13.86240238]
[1646956147404,0.16167052,2612.4,2611.6,0.95754]
[1646956147606,1.580167,2612.3,2611.7,5.00849]
[1646956147805,1.580167,2612.3,2611.8,2.8723721]
[1646956148055,0.05396562,2612.7,2611.9,4.051]
[1646956148249,0.04893673,2612.5,2611.9,5.051]
[1646956148448,1.57993331,2612.4,2612.1,0.95737]
[1646956148645,1.57993331,2612.4,2612.2,0.551]
[1646956149246,1.58438311,2612.4,2612.2,0.551]
[1646956149450,1.57993331,2612.3,2612.2,0.551]
[1646956150046,1.59227628,2612.3,2612.2,0.551]
[1646956150548,1.59227628,2612.3,2612.2,5.0084418]
[1646956150549,0.01234297,2612.3,2612.2,5.0084418]
[1646956150753,0.01234297,2612.3,2612.2,1.8084418]
[1646956150956,1.59240821,2612.3,2612.2,1.8084418]
[1646956151151,1.63666004,2612.3,2612.2,1.8084418]
[1646956151453,1.63666004,2612.3,2612.2,0.9574418]
[1646956151653,0.04348343,2612.2,2611.9,0.9577267]
[1646956151904,0.04348343,2612.2,2611.8,1.92035264]
[1646956151905,1.58006524,2612.1,2611.8,1.92035264]
[1646956152104,0.05183859,2612.0,2611.8,0.00497464]
[1646956152305,1.58006524,2611.9,2611.8,0.00497464]
[1646956152906,0.05162596,2611.6,2610.7,5.43972988]
[1646956153104,0.05162596,2611.6,2610.9,0.957852]
[1646956153305,0.00696779,2611.7,2611.0,0.551]
[1646956153508,0.04596796,2611.5,2611.1,1.9156022]
[1646956153703,0.04596796,2611.5,2611.1,2.2156022]
[1646956153904,0.00696779,2611.7,2611.1,2.7666022]
[1646956154203,1.10812461,2611.5,2611.1,3.7244033]
[1646956154504,0.04550716,2611.4,2611.1,3.7244033]
[1646956154705,0.04550716,2611.4,2611.1,3.1734033]
[1646956154905,1.58054428,2611.3,2611.1,3.1734033]
[1646956155106,0.05396941,2611.2,2611.1,3.1734033]
[1646956155307,1.5806411,2611.2,2611.1,3.1734033]
[1646956155542,0.05084358,2611.2,2611.1,3.1734033]
[1646956155746,0.00427538,2611.4,2611.1,2.8734033]
[1646956155949,1.58062416,2611.3,2611.1,1.9156022]
[1646956156152,3.5,2611.2,2611.1,1.9156022]
[1646956156348,5.08062416,2611.2,2611.1,1.9156022]
[1646956156553,1.58062416,2611.2,2611.1,1.9156022]
[1646956156746,5.08062416,2611.2,2611.1,1.9156022]
[1646956156947,1.58062416,2611.2,2611.1,2.2156022]
[1646956157346,1.58062416,2611.3,2611.1,2.2156022]
[1646956157549,3.5,2611.2,2611.1,2.2156022]
[1646956157747,5.08062416,2611.2,2611.1,2.2156022]
[1646956157946,1.58062416,2611.2,2611.1,2.2156022]
[1646956158348,1.58062416,2611.4,2611.1,2.2156022]
[1646956158647,1.58062416,2611.3,2611.1,2.2156022]
[1646956158851,1.58062416,2611.2,2611.1,2.2156022]
[1646956159053,1.58062416,2611.4,2611.1,2.2156022]
[1646956159889,1.59299249,2611.4,2611.1,2.21992743]
[1646956160089,1.58062416,2611.3,2611.1,2.21992743]
[1646956161294,1.58490273,2611.3,2611.1,2.21992743]
[1646956162093,1.58062416,2611.3,2611.1,2.21992743]
[1646956162495,1.58499314,2611.3,2611.1,2.21992743]
[1646956162695,0.00436898,2611.3,2611.1,2.21992743]
[1646956163442,0.01236833,2611.4,2611.1,2.21992743]
[1646956163643,1.58502467,2611.3,2611.1,2.21992743]
[1646956163844,0.00436898,2611.3,2611.1,2.21992743]
[1646956164644,0.01236833,2611.4,2611.1,2.21992743]
[1646956164845,1.58501309,2611.3,2611.1,2.21992743]
[1646956165045,0.00436898,2611.3,2611.1,2.21992743]
[1646956165848,0.05534157,2611.4,2611.1,2.21992743]
[1646956166047,1.58496686,2611.3,2611.1,2.21992743]
[1646956166248,0.04847499,2611.2,2611.1,2.21992743]
[1646956166553,1.58074322,2611.2,2611.1,2.21992743]
[1646956167290,1.58502403,2611.3,2611.1,2.21992743]
[1646956167493,1.58074322,2611.2,2611.1,2.21992743]
[1646956167694,0.00428081,2611.3,2611.1,2.21992743]
[1646956168294,0.01236833,2611.4,2611.1,2.21992743]
[1646956168494,1.58505068,2611.3,2611.1,2.21992743]
[1646956168693,1.58076991,2611.2,2611.1,2.21992743]
[1646956169099,0.00428077,2611.3,2611.1,2.21992743]
[1646956169394,0.01236833,2611.4,2611.1,2.21992743]
[1646956169596,1.58502292,2611.3,2611.1,2.21992743]
[1646956169895,0.00428975,2611.3,2611.1,0.30432523]
[1646956170297,0.00428975,2611.3,2611.1,0.00432523]
[1646956170551,0.01236833,2611.4,2611.1,0.00432523]
[1646956170552,0.97044833,2611.4,2611.1,0.00432523]